{"text_format":"1","workbook":"xlsx","n_sheets":4,"sheets":["Main","Samir Fouad","Omar Nagy","Said Reda"],"not_rendered":{"charts":0,"images":0,"macros":1,"external_links":0,"defined_names":2,"comments":0,"pivot_tables":0},"unopened":[],"bounds":{"document_bytes":16777216,"sheet_cells":100000,"rows_first":2000,"rows_last":500,"rows_between":2000,"halvings":0,"cell_chars":16384,"cell_head_chars":4096},"cells_cut":0,"cells_raw":0,"read":"whole","date_system":"1900"}

{"sheet":"Main","index":0,"n_rows":224,"n_cols":43,"rows_kept":224,"cut":false,"hidden":false,"merged":[[0,35,0,42],[223,35,223,40],[0,0,0,2],[0,3,0,25],[0,26,0,30],[0,32,0,34]]}
["Participating",null,null,"Ticket",null,null,null,null,null,null,null,null,null,null,null,null,null,null,null,null,null,null,null,null,null,null,"Prices",null,null,null,null,"Codes","Cancel",null,null,"Collection"]
["Adl","Chd","Baby","Muh Kullanıcı","Muhasebe Tarih","Zarf","Accounting","Ödeme Beklenen","Sale Type","SlipNo","Slip Tutarı","Free","Tour Name","Voucher","Tour Date","Guide Name","Customer Package","Packet","Colection Control","Hotel","Suppliers","Sale Date","Trans Region Name","Remark","Lock","Ticket No","Tour Price","Discount","Ekstra Price","Net Amount","Collection",null,"Adl","Chd","Baby","Date","Process","Type","Receipt No","Curr","Exchange","Amount","Remark"]
[null,null,null,null,null,null,null,null,null,null,null,null,null,null,null,"Said Reda",null,null,null,null,null,null,null,null,null,1000055,null,null,null,195]
[null,null,null,null,null,null,null,null,null,null,null,null,null,null,null,"Said Reda",null,null,null,null,null,null,null,null,null,1000057,null,null,null,60]
[null,null,null,null,null,null,null,null,null,null,null,null,null,null,null,"Said Reda",null,null,null,null,null,null,null,null,null,1000058,null,null,null,70]
[null,null,null,null,null,null,null,null,null,null,null,null,"Shopping",null,null,"Said Reda",null,null,null,null,null,null,null,null,null,1000059,null,null,null,0]
[null,null,null,null,null,null,null,null,null,null,null,null,null,null,null,"Said Reda",null,null,null,null,null,null,null,null,null,1000060,null,null,null,160]
[null,null,null,null,null,null,null,null,null,null,null,null,null,null,null,"Said Reda",null,null,null,null,null,null,null,null,null,1000061,null,null,null,110]
[null,null,null,null,null,null,null,null,null,null,null,null,null,null,null,"Said Reda",null,null,null,null,null,null,null,null,null,1000062,null,null,null,60]
[null,null,null,null,null,null,null,null,null,null,null,null,"Shopping",null,null,"Said Reda",null,null,null,null,null,null,null,null,null,1000063,null,null,null,0]
[null,null,null,null,null,null,null,null,null,null,null,null,null,null,null,"Said Reda",null,null,null,null,null,null,null,null,null,1000064,null,null,null,80]
[null,null,null,null,null,null,null,null,null,null,null,null,null,null,null,"Said Reda",null,null,null,null,null,null,null,null,null,1000065,null,null,null,60]
[null,null,null,null,null,null,null,null,null,null,null,null,null,null,null,"Said Reda",null,null,null,null,null,null,null,null,null,1000066,null,null,null,75]
[null,null,null,null,null,null,null,null,null,null,null,null,"Shopping",null,null,"Said Reda",null,null,null,null,null,null,null,null,null,1000067,null,null,null,0]
[null,null,null,null,null,null,null,null,null,null,null,null,"Shopping",null,null,"Said Reda",null,null,null,null,null,null,null,null,null,1000069,null,null,null,0]
[null,null,null,null,null,null,null,null,null,null,null,null,"Shopping",null,null,"Said Reda",null,null,null,null,null,null,null,null,null,1000070,null,null,null,0]
[null,null,null,null,null,null,null,null,null,null,null,null,null,null,null,"Said Reda",null,null,null,null,null,null,null,null,null,1000072,null,null,null,60]
[null,null,null,null,null,null,null,null,null,null,null,null,"Shopping",null,null,"Said Reda",null,null,null,null,null,null,null,null,null,1000073,null,null,null,0]
[null,null,null,null,null,null,null,null,null,null,null,null,"Shopping",null,null,"Said Reda",null,null,null,null,null,null,null,null,null,1000074,null,null,null,0]
[null,null,null,null,null,null,null,null,null,null,null,null,null,null,null,"Said Reda",null,null,null,null,null,null,null,null,null,1000075,null,null,null,70]
[null,null,null,null,null,null,null,null,null,null,null,null,null,null,null,"Said Reda",null,null,null,null,null,null,null,null,null,1000077,null,null,null,90]
[null,null,null,null,null,null,null,null,null,null,null,null,null,null,null,"Said Reda",null,null,null,null,null,null,null,null,null,1000078,null,null,null,200]
[null,null,null,null,null,null,null,null,null,null,null,null,null,null,null,"Said Reda",null,null,null,null,null,null,null,null,null,1000079,null,null,null,100]
[null,null,null,null,null,null,null,null,null,null,null,null,null,null,null,"Said Reda",null,null,null,null,null,null,null,null,null,1000080,null,null,null,60]
[null,null,null,null,null,null,null,null,null,null,null,null,null,null,null,"Said Reda",null,null,null,null,null,null,null,null,null,1000081,null,null,null,160]
[null,null,null,null,null,null,null,null,null,null,null,null,"Shopping",null,null,"Said Reda",null,null,null,null,null,null,null,null,null,1000082,null,null,null,0]
[null,null,null,null,null,null,null,null,null,null,null,null,null,null,null,"Said Reda",null,null,null,null,null,null,null,null,null,1000083,null,null,null,80]
[null,null,null,null,null,null,null,null,null,null,null,null,null,null,null,"Samir Fouad",null,null,null,null,null,null,null,null,null,1000217,null,null,null,110]
[null,null,null,null,null,null,null,null,null,null,null,null,null,null,null,"Samir Fouad",null,null,null,null,null,null,null,null,null,1000218,null,null,null,60]
[null,null,null,null,null,null,null,null,null,null,null,null,null,null,null,"Samir Fouad",null,null,null,null,null,null,null,null,null,1000219,null,null,null,110]
[null,null,null,null,null,null,null,null,null,null,null,null,null,null,null,"Samir Fouad",null,null,null,null,null,null,null,null,null,1000220,null,null,null,60]
[null,null,null,null,null,null,null,null,null,null,null,null,null,null,null,"Samir Fouad",null,null,null,null,null,null,null,null,null,1000223,null,null,null,110]
[null,null,null,null,null,null,null,null,null,null,null,null,null,null,null,"Samir Fouad",null,null,null,null,null,null,null,null,null,1000224,null,null,null,60]
[null,null,null,null,null,null,null,null,null,null,null,null,null,null,null,"Samir Fouad",null,null,null,null,null,null,null,null,null,1000226,null,null,null,70]
[null,null,null,null,null,null,null,null,null,null,null,null,"20 $ Discount",null,null,"Samir Fouad",null,null,null,null,null,null,null,null,null,1000228,null,null,null,110]
[null,null,null,null,null,null,null,null,null,null,null,null,"10 $ Discount",null,null,"Samir Fouad",null,null,null,null,null,null,null,null,null,1000229,null,null,null,50]
[null,null,null,null,null,null,null,null,null,null,null,null,null,null,null,"Samir Fouad",null,null,null,null,null,null,null,null,null,1000233,null,null,null,30]
[null,null,null,null,null,null,null,null,null,null,null,null,"10 $ Discount",null,null,"Samir Fouad",null,null,null,null,null,null,null,null,null,1000234,null,null,null,60]
[null,null,null,null,null,null,null,null,null,null,null,null,"10 $ Discount",null,null,"Samir Fouad",null,null,null,null,null,null,null,null,null,1000238,null,null,null,60]
[null,null,null,null,null,null,null,null,null,null,null,null,"Shopping",null,null,"Samir Fouad",null,null,null,null,null,null,null,null,null,1000239,null,null,null,0]
[null,null,null,null,null,null,null,null,null,null,null,null,"5 $ Discount",null,null,"Samir Fouad",null,null,null,null,null,null,null,null,null,1000240,null,null,null,25]
[null,null,null,null,null,null,null,null,null,null,null,null,null,null,null,"Samir Fouad",null,null,null,null,null,null,null,null,null,1000241,null,null,null,30]
[null,null,null,null,null,null,null,null,null,null,null,null,null,null,null,"Samir Fouad",null,null,null,null,null,null,null,null,null,1000242,null,null,null,110]
[null,null,null,null,null,null,null,null,null,null,null,null,"Shopping",null,null,"Samir Fouad",null,null,null,null,null,null,null,null,null,1000243,null,null,null,0]
[null,null,null,null,null,null,null,null,null,null,null,null,null,null,null,"Samir Fouad",null,null,null,null,null,null,null,null,null,1000244,null,null,null,160]
[null,null,null,null,null,null,null,null,null,null,null,null,"Shopping",null,null,"Samir Fouad",null,null,null,null,null,null,null,null,null,1000245,null,null,null,0]
[null,null,null,null,null,null,null,null,null,null,null,null,null,null,null,"Samir Fouad",null,null,null,null,null,null,null,null,null,1000247,null,null,null,80]
[null,null,null,null,null,null,null,null,null,null,null,null,"Shopping",null,null,"Samir Fouad",null,null,null,null,null,null,null,null,null,1000248,null,null,null,0]
[null,null,null,null,null,null,null,null,null,null,null,null,"Shopping",null,null,"Samir Fouad",null,null,null,null,null,null,null,null,null,1000249,null,null,null,0]
[null,null,null,null,null,null,null,null,null,null,null,null,null,null,null,"Samir Fouad",null,null,null,null,null,null,null,null,null,1000250,null,null,null,100]
[null,null,null,null,null,null,null,null,null,null,null,null,null,null,null,"Omar Nagy",null,null,null,null,null,null,null,null,null,1000411,null,null,null,55]
[null,null,null,null,null,null,null,null,null,null,null,null,null,null,null,"Omar Nagy",null,null,null,null,null,null,null,null,null,1000413,null,null,null,220]
[null,null,null,null,null,null,null,null,null,null,null,null,null,null,null,"Omar Nagy",null,null,null,null,null,null,null,null,null,1000414,null,null,null,60]
[null,null,null,null,null,null,null,null,null,null,null,null,null,null,null,"Omar Nagy",null,null,null,null,null,null,null,null,null,1000416,null,null,null,90]
[null,null,null,null,null,null,null,null,null,null,null,null,"5 $ Discount",null,null,"Omar Nagy",null,null,null,null,null,null,null,null,null,1000421,null,null,null,55]
[null,null,null,null,null,null,null,null,null,null,null,null,null,null,null,"Omar Nagy",null,null,null,null,null,null,null,null,null,1000422,null,null,null,60]
[null,null,null,null,null,null,null,null,null,null,null,null,null,null,null,"Omar Nagy",null,null,null,null,null,null,null,null,null,1000423,null,null,null,60]
[null,null,null,null,null,null,null,null,null,null,null,null,null,null,null,"Omar Nagy",null,null,null,null,null,null,null,null,null,1000424,null,null,null,30]
[null,null,null,null,null,null,null,null,null,null,null,null,null,null,null,"Omar Nagy",null,null,null,null,null,null,null,null,null,1000425,null,null,null,60]
[null,null,null,null,null,null,null,null,null,null,null,null,null,null,null,"Omar Nagy",null,null,null,null,null,null,null,null,null,1000427,null,null,null,80]
[null,null,null,null,null,null,null,null,null,null,null,null,"Shopping",null,null,"Omar Nagy",null,null,null,null,null,null,null,null,null,1000428,null,null,null,0]
[null,null,null,null,null,null,null,null,null,null,null,null,"Shopping",null,null,"Omar Nagy",null,null,null,null,null,null,null,null,null,1000429,null,null,null,0]
[null,null,null,null,null,null,null,null,null,null,null,null,null,null,null,"Omar Nagy",null,null,null,null,null,null,null,null,null,1000430,null,null,null,165]
[null,null,null,null,null,null,null,null,null,null,null,null,null,null,null,"Omar Nagy",null,null,null,null,null,null,null,null,null,1000431,null,null,null,60]
[null,null,null,null,null,null,null,null,null,null,null,null,null,null,null,"Omar Nagy",null,null,null,null,null,null,null,null,null,1000432,null,null,null,80]
[null,null,null,null,null,null,null,null,null,null,null,null,null,null,null,"Omar Nagy",null,null,null,null,null,null,null,null,null,1000433,null,null,null,110]
[null,null,null,null,null,null,null,null,null,null,null,null,"Shopping",null,null,"Omar Nagy",null,null,null,null,null,null,null,null,null,1000434,null,null,null,0]
[null,null,null,null,null,null,null,null,null,null,null,null,"10 $ Discount",null,null,"Omar Nagy",null,null,null,null,null,null,null,null,null,1000435,null,null,null,100]
[null,null,null,null,null,null,null,null,null,null,null,null,"Shopping",null,null,"Omar Nagy",null,null,null,null,null,null,null,null,null,1000436,null,null,null,0]
[null,null,null,null,null,null,null,null,null,null,null,null,"Shopping",null,null,"Omar Nagy",null,null,null,null,null,null,null,null,null,1000437,null,null,null,0]
[null,null,null,null,null,null,null,null,null,null,null,null,null,null,null,"Omar Nagy",null,null,null,null,null,null,null,null,null,1000438,null,null,null,440]
[null,null,null,null,null,null,null,null,null,null,null,null,"35$ Discount",null,null,"Omar Nagy",null,null,null,null,null,null,null,null,null,1000439,null,null,null,115]
[null,null,null,null,null,null,null,null,null,null,null,null,null,null,null,"Samir Fouad",null,null,null,null,null,null,null,null,null,1000575,null,null,null,40]
[null,null,null,null,null,null,null,null,null,null,null,null,"Shopping",null,null,"Samir Fouad",null,null,null,null,null,null,null,null,null,1000588,null,null,null,0]
[null,null,null,null,null,null,null,null,null,null,null,null,null,null,null,"Samir Fouad",null,null,null,null,null,null,null,null,null,1000701,null,null,null,60]
[null,null,null,null,null,null,null,null,null,null,null,null,null,null,null,"Samir Fouad",null,null,null,null,null,null,null,null,null,1000702,null,null,null,80]
[null,null,null,null,null,null,null,null,null,null,null,null,"Shopping",null,null,"Samir Fouad",null,null,null,null,null,null,null,null,null,1000703,null,null,null,0]
[null,null,null,null,null,null,null,null,null,null,null,null,null,null,null,"Samir Fouad",null,null,null,null,null,null,null,null,null,1000704,null,null,null,80]
[null,null,null,null,null,null,null,null,null,null,null,null,null,null,null,"Samir Fouad",null,null,null,null,null,null,null,null,null,1000706,null,null,null,200]
[null,null,null,null,null,null,null,null,null,null,null,null,null,null,null,"Samir Fouad",null,null,null,null,null,null,null,null,null,1000707,null,null,null,70]
[null,null,null,null,null,null,null,null,null,null,null,null,"Shopping",null,null,"Samir Fouad",null,null,null,null,null,null,null,null,null,1000708,null,null,null,0]
[null,null,null,null,null,null,null,null,null,null,null,null,null,null,null,"Samir Fouad",null,null,null,null,null,null,null,null,null,1000709,null,null,null,80]
[null,null,null,null,null,null,null,null,null,null,null,null,null,null,null,"Samir Fouad",null,null,null,null,null,null,null,null,null,1000710,null,null,null,35]
[null,null,null,null,null,null,null,null,null,null,null,null,"Shopping",null,null,"Samir Fouad",null,null,null,null,null,null,null,null,null,1000711,null,null,null,0]
[null,null,null,null,null,null,null,null,null,null,null,null,null,null,null,"Samir Fouad",null,null,null,null,null,null,null,null,null,1000712,null,null,null,40]
[null,null,null,null,null,null,null,null,null,null,null,null,"5 $ Discount",null,null,"Samir Fouad",null,null,null,null,null,null,null,null,null,1000713,null,null,null,208]
[null,null,null,null,null,null,null,null,null,null,null,null,"5 $ Discount",null,null,"Samir Fouad",null,null,null,null,null,null,null,null,null,1000714,null,null,null,95]
[null,null,null,null,null,null,null,null,null,null,null,null,"5 $ Discount",null,null,"Samir Fouad",null,null,null,null,null,null,null,null,null,1000715,null,null,null,30]
[null,null,null,null,null,null,null,null,null,null,null,null,"Shopping",null,null,"Samir Fouad",null,null,null,null,null,null,null,null,null,1000716,null,null,null,0]
[null,null,null,null,null,null,null,null,null,null,null,null,null,null,null,"Samir Fouad",null,null,null,null,null,null,null,null,null,1000717,null,null,null,55]
[null,null,null,null,null,null,null,null,null,null,null,null,null,null,null,"Samir Fouad",null,null,null,null,null,null,null,null,null,1000718,null,null,null,95]
[null,null,null,null,null,null,null,null,null,null,null,null,"Shopping",null,null,"Samir Fouad",null,null,null,null,null,null,null,null,null,1000719,null,null,null,0]
[null,null,null,null,null,null,null,null,null,null,null,null,null,null,null,"Samir Fouad",null,null,null,null,null,null,null,null,null,1000720,null,null,null,90]
[null,null,null,null,null,null,null,null,null,null,null,null,null,null,null,"Samir Fouad",null,null,null,null,null,null,null,null,null,1000721,null,null,null,110]
[null,null,null,null,null,null,null,null,null,null,null,null,"Shopping",null,null,"Samir Fouad",null,null,null,null,null,null,null,null,null,1000723,null,null,null,0]
[null,null,null,null,null,null,null,null,null,null,null,null,"10 $ Discount",null,null,"Samir Fouad",null,null,null,null,null,null,null,null,null,1000724,null,null,null,110]
[null,null,null,null,null,null,null,null,null,null,null,null,"Shopping",null,null,"Samir Fouad",null,null,null,null,null,null,null,null,null,1000725,null,null,null,0]
[null,null,null,null,null,null,null,null,null,null,null,null,null,null,null,"Samir Fouad",null,null,null,null,null,null,null,null,null,1000726,null,null,null,80]
[null,null,null,null,null,null,null,null,null,null,null,null,"Shopping",null,null,"Samir Fouad",null,null,null,null,null,null,null,null,null,1000727,null,null,null,0]
[null,null,null,null,null,null,null,null,null,null,null,null,"15 $ Discount",null,null,"Samir Fouad",null,null,null,null,null,null,null,null,null,1000728,null,null,null,90]
[null,null,null,null,null,null,null,null,null,null,null,null,"5 $ Discount",null,null,"Samir Fouad",null,null,null,null,null,null,null,null,null,1000729,null,null,null,30]
[null,null,null,null,null,null,null,null,null,null,null,null,null,null,null,"Samir Fouad",null,null,null,null,null,null,null,null,null,1000730,null,null,null,110]
[null,null,null,null,null,null,null,null,null,null,null,null,"Shopping",null,null,"Samir Fouad",null,null,null,null,null,null,null,null,null,1000731,null,null,null,0]
[null,null,null,null,null,null,null,null,null,null,null,null,"Shopping",null,null,"Samir Fouad",null,null,null,null,null,null,null,null,null,1000732,null,null,null,0]
[null,null,null,null,null,null,null,null,null,null,null,null,null,null,null,"Samir Fouad",null,null,null,null,null,null,null,null,null,1000733,null,null,null,160]
[null,null,null,null,null,null,null,null,null,null,null,null,null,null,null,"Samir Fouad",null,null,null,null,null,null,null,null,null,1000734,null,null,null,160]
[null,null,null,null,null,null,null,null,null,null,null,null,null,null,null,"Samir Fouad",null,null,null,null,null,null,null,null,null,1000735,null,null,null,110]
[null,null,null,null,null,null,null,null,null,null,null,null,null,null,null,"Samir Fouad",null,null,null,null,null,null,null,null,null,1000736,null,null,null,160]
[null,null,null,null,null,null,null,null,null,null,null,null,null,null,null,"Samir Fouad",null,null,null,null,null,null,null,null,null,1000737,null,null,null,110]
[null,null,null,null,null,null,null,null,null,null,null,null,null,null,null,"Samir Fouad",null,null,null,null,null,null,null,null,null,1000738,null,null,null,160]
[null,null,null,null,null,null,null,null,null,null,null,null,null,null,null,"Samir Fouad",null,null,null,null,null,null,null,null,null,1000739,null,null,null,110]
[null,null,null,null,null,null,null,null,null,null,null,null,null,null,null,"Samir Fouad",null,null,null,null,null,null,null,null,null,1000740,null,null,null,160]
[null,null,null,null,null,null,null,null,null,null,null,null,null,null,null,"Samir Fouad",null,null,null,null,null,null,null,null,null,1000741,null,null,null,240]
[null,null,null,null,null,null,null,null,null,null,null,null,"Shopping",null,null,"Samir Fouad",null,null,null,null,null,null,null,null,null,1000742,null,null,null,0]
[null,null,null,null,null,null,null,null,null,null,null,null,null,null,null,"Samir Fouad",null,null,null,null,null,null,null,null,null,1000743,null,null,null,240]
[null,null,null,null,null,null,null,null,null,null,null,null,null,null,null,"Samir Fouad",null,null,null,null,null,null,null,null,null,1000744,null,null,null,186]
[null,null,null,null,null,null,null,null,null,null,null,null,null,null,null,"Samir Fouad",null,null,null,null,null,null,null,null,null,1000745,null,null,null,106]
[null,null,null,null,null,null,null,null,null,null,null,null,"Shopping",null,null,"Samir Fouad",null,null,null,null,null,null,null,null,null,1000746,null,null,null,0]
[null,null,null,null,null,null,null,null,null,null,null,null,"Shopping",null,null,"Samir Fouad",null,null,null,null,null,null,null,null,null,1000748,null,null,null,0]
[null,null,null,null,null,null,null,null,null,null,null,null,"10 $ Discount",null,null,"Samir Fouad",null,null,null,null,null,null,null,null,null,1000749,null,null,null,70]
[null,null,null,null,null,null,null,null,null,null,null,null,"Shopping",null,null,"Samir Fouad",null,null,null,null,null,null,null,null,null,1000750,null,null,null,0]
[null,null,null,null,null,null,null,null,null,null,null,null,null,null,null,"Samir Fouad",null,null,null,null,null,null,null,null,null,1000801,null,null,null,110]
[null,null,null,null,null,null,null,null,null,null,null,null,"Shopping",null,null,"Samir Fouad",null,null,null,null,null,null,null,null,null,1000802,null,null,null,0]
[null,null,null,null,null,null,null,null,null,null,null,null,null,null,null,"Samir Fouad",null,null,null,null,null,null,null,null,null,1000804,null,null,null,70]
[null,null,null,null,null,null,null,null,null,null,null,null,null,null,null,"Samir Fouad",null,null,null,null,null,null,null,null,null,1000805,null,null,null,80]
[null,null,null,null,null,null,null,null,null,null,null,null,null,null,null,"Samir Fouad",null,null,null,null,null,null,null,null,null,1000806,null,null,null,80]
[null,null,null,null,null,null,null,null,null,null,null,null,"Shopping",null,null,"Samir Fouad",null,null,null,null,null,null,null,null,null,1000807,null,null,null,0]
[null,null,null,null,null,null,null,null,null,null,null,null,"10 $ Discount",null,null,"Samir Fouad",null,null,null,null,null,null,null,null,null,1000808,null,null,null,60]
[null,null,null,null,null,null,null,null,null,null,null,null,"Shopping",null,null,"Samir Fouad",null,null,null,null,null,null,null,null,null,1000809,null,null,null,0]
[null,null,null,null,null,null,null,null,null,null,null,null,"20 $ Discount",null,null,"Samir Fouad",null,null,null,null,null,null,null,null,null,1000810,null,null,null,140]
[null,null,null,null,null,null,null,null,null,null,null,null,null,null,null,"Samir Fouad",null,null,null,null,null,null,null,null,null,1000811,null,null,null,80]
[null,null,null,null,null,null,null,null,null,null,null,null,null,null,null,"Samir Fouad",null,null,null,null,null,null,null,null,null,1000812,null,null,null,55]
[null,null,null,null,null,null,null,null,null,null,null,null,"Shopping",null,null,"Samir Fouad",null,null,null,null,null,null,null,null,null,1000814,null,null,null,0]
[null,null,null,null,null,null,null,null,null,null,null,null,"Shopping",null,null,"Samir Fouad",null,null,null,null,null,null,null,null,null,1000815,null,null,null,0]
[null,null,null,null,null,null,null,null,null,null,null,null,null,null,null,"Samir Fouad",null,null,null,null,null,null,null,null,null,1000816,null,null,null,160]
[null,null,null,null,null,null,null,null,null,null,null,null,null,null,null,"Samir Fouad",null,null,null,null,null,null,null,null,null,1000817,null,null,null,80]
[null,null,null,null,null,null,null,null,null,null,null,null,"Shopping",null,null,"Samir Fouad",null,null,null,null,null,null,null,null,null,1000818,null,null,null,0]
[null,null,null,null,null,null,null,null,null,null,null,null,null,null,null,"Samir Fouad",null,null,null,null,null,null,null,null,null,1000819,null,null,null,160]
[null,null,null,null,null,null,null,null,null,null,null,null,null,null,null,"Samir Fouad",null,null,null,null,null,null,null,null,null,1000820,null,null,null,120]
[null,null,null,null,null,null,null,null,null,null,null,null,null,null,null,"Samir Fouad",null,null,null,null,null,null,null,null,null,1000821,null,null,null,160]
[null,null,null,null,null,null,null,null,null,null,null,null,null,null,null,"Samir Fouad",null,null,null,null,null,null,null,null,null,1000822,null,null,null,120]
[null,null,null,null,null,null,null,null,null,null,null,null,"Shopping",null,null,"Samir Fouad",null,null,null,null,null,null,null,null,null,1000823,null,null,null,0]
[null,null,null,null,null,null,null,null,null,null,null,null,"Shopping",null,null,"Samir Fouad",null,null,null,null,null,null,null,null,null,1000824,null,null,null,0]
[null,null,null,null,null,null,null,null,null,null,null,null,"Shopping",null,null,"Samir Fouad",null,null,null,null,null,null,null,null,null,1000825,null,null,null,0]
[null,null,null,null,null,null,null,null,null,null,null,null,null,null,null,"Samir Fouad",null,null,null,null,null,null,null,null,null,1000826,null,null,null,70]
[null,null,null,null,null,null,null,null,null,null,null,null,"Shopping",null,null,"Samir Fouad",null,null,null,null,null,null,null,null,null,1000827,null,null,null,0]
[null,null,null,null,null,null,null,null,null,null,null,null,null,null,null,"Samir Fouad",null,null,null,null,null,null,null,null,null,1000828,null,null,null,120]
[null,null,null,null,null,null,null,null,null,null,null,null,null,null,null,"Samir Fouad",null,null,null,null,null,null,null,null,null,1000829,null,null,null,120]
[null,null,null,null,null,null,null,null,null,null,null,null,"20 $ Discount",null,null,"Samir Fouad",null,null,null,null,null,null,null,null,null,1000831,null,null,null,200]
[null,null,null,null,null,null,null,null,null,null,null,null,null,null,null,"Samir Fouad",null,null,null,null,null,null,null,null,null,1000832,null,null,null,320]
[null,null,null,null,null,null,null,null,null,null,null,null,"Shopping",null,null,"Samir Fouad",null,null,null,null,null,null,null,null,null,1000833,null,null,null,0]
[null,null,null,null,null,null,null,null,null,null,null,null,"Shopping",null,null,"Samir Fouad",null,null,null,null,null,null,null,null,null,1000834,null,null,null,0]
[null,null,null,null,null,null,null,null,null,null,null,null,null,null,null,"Samir Fouad",null,null,null,null,null,null,null,null,null,1000835,null,null,null,75]
[null,null,null,null,null,null,null,null,null,null,null,null,null,null,null,"Samir Fouad",null,null,null,null,null,null,null,null,null,1000836,null,null,null,55]
[null,null,null,null,null,null,null,null,null,null,null,null,"Shopping",null,null,"Samir Fouad",null,null,null,null,null,null,null,null,null,1000837,null,null,null,0]
[null,null,null,null,null,null,null,null,null,null,null,null,null,null,null,"Samir Fouad",null,null,null,null,null,null,null,null,null,1000838,null,null,null,60]
[null,null,null,null,null,null,null,null,null,null,null,null,"Shopping",null,null,"Samir Fouad",null,null,null,null,null,null,null,null,null,1000839,null,null,null,0]
[null,null,null,null,null,null,null,null,null,null,null,null,"Shopping",null,null,"Samir Fouad",null,null,null,null,null,null,null,null,null,1000840,null,null,null,0]
[null,null,null,null,null,null,null,null,null,null,null,null,"Shopping",null,null,"Samir Fouad",null,null,null,null,null,null,null,null,null,1000841,null,null,null,0]
[null,null,null,null,null,null,null,null,null,null,null,null,"Shopping",null,null,"Samir Fouad",null,null,null,null,null,null,null,null,null,1000843,null,null,null,0]
[null,null,null,null,null,null,null,null,null,null,null,null,"Shopping",null,null,"Samir Fouad",null,null,null,null,null,null,null,null,null,1000844,null,null,null,0]
[null,null,null,null,null,null,null,null,null,null,null,null,null,null,null,"Samir Fouad",null,null,null,null,null,null,null,null,null,1000845,null,null,null,30]
[null,null,null,null,null,null,null,null,null,null,null,null,"Shopping",null,null,"Samir Fouad",null,null,null,null,null,null,null,null,null,1000846,null,null,null,0]
[null,null,null,null,null,null,null,null,null,null,null,null,null,null,null,"Samir Fouad",null,null,null,null,null,null,null,null,null,1000847,null,null,null,80]
[null,null,null,null,null,null,null,null,null,null,null,null,"Shopping",null,null,"Samir Fouad",null,null,null,null,null,null,null,null,null,1000848,null,null,null,0]
[null,null,null,null,null,null,null,null,null,null,null,null,"10 $ Discount",null,null,"Samir Fouad",null,null,null,null,null,null,null,null,null,1000849,null,null,null,100]
[null,null,null,null,null,null,null,null,null,null,null,null,"Shopping",null,null,"Samir Fouad",null,null,null,null,null,null,null,null,null,1000850,null,null,null,0]
[null,null,null,null,null,null,null,null,null,null,null,null,null,null,null,"Samir Fouad",null,null,null,null,null,null,null,null,null,1001001,null,null,null,110]
[null,null,null,null,null,null,null,null,null,null,null,null,"Shopping",null,null,"Samir Fouad",null,null,null,null,null,null,null,null,null,1001002,null,null,null,0]
[null,null,null,null,null,null,null,null,null,null,null,null,null,null,null,"Samir Fouad",null,null,null,null,null,null,null,null,null,1001003,null,null,null,110]
[null,null,null,null,null,null,null,null,null,null,null,null,null,null,null,"Samir Fouad",null,null,null,null,null,null,null,null,null,1001004,null,null,null,60]
[null,null,null,null,null,null,null,null,null,null,null,null,"Shopping",null,null,"Samir Fouad",null,null,null,null,null,null,null,null,null,1001005,null,null,null,0]
[null,null,null,null,null,null,null,null,null,null,null,null,null,null,null,"Samir Fouad",null,null,null,null,null,null,null,null,null,1001006,null,null,null,110]
[null,null,null,null,null,null,null,null,null,null,null,null,"10 $ Discount",null,null,"Samir Fouad",null,null,null,null,null,null,null,null,null,1001007,null,null,null,100]
[null,null,null,null,null,null,null,null,null,null,null,null,"Shopping",null,null,"Samir Fouad",null,null,null,null,null,null,null,null,null,1001008,null,null,null,0]
[null,null,null,null,null,null,null,null,null,null,null,null,null,null,null,"Samir Fouad",null,null,null,null,null,null,null,null,null,1001009,null,null,null,110]
[null,null,null,null,null,null,null,null,null,null,null,null,"Shopping",null,null,"Samir Fouad",null,null,null,null,null,null,null,null,null,1001010,null,null,null,0]
[null,null,null,null,null,null,null,null,null,null,null,null,"Shopping",null,null,"Samir Fouad",null,null,null,null,null,null,null,null,null,1001011,null,null,null,0]
[null,null,null,null,null,null,null,null,null,null,null,null,null,null,null,"Samir Fouad",null,null,null,null,null,null,null,null,null,1001012,null,null,null,55]
[null,null,null,null,null,null,null,null,null,null,null,null,"Shopping",null,null,"Samir Fouad",null,null,null,null,null,null,null,null,null,1001013,null,null,null,0]
[null,null,null,null,null,null,null,null,null,null,null,null,"Shopping",null,null,"Samir Fouad",null,null,null,null,null,null,null,null,null,1001014,null,null,null,0]
[null,null,null,null,null,null,null,null,null,null,null,null,"Shopping",null,null,"Samir Fouad",null,null,null,null,null,null,null,null,null,1001015,null,null,null,0]
[null,null,null,null,null,null,null,null,null,null,null,null,"10 $ Discount",null,null,"Samir Fouad",null,null,null,null,null,null,null,null,null,1001016,null,null,null,110]
[null,null,null,null,null,null,null,null,null,null,null,null,null,null,null,"Samir Fouad",null,null,null,null,null,null,null,null,null,1001017,null,null,null,110]
[null,null,null,null,null,null,null,null,null,null,null,null,"10 $ Discount",null,null,"Samir Fouad",null,null,null,null,null,null,null,null,null,1001018,null,null,null,100]
[null,null,null,null,null,null,null,null,null,null,null,null,"Shopping",null,null,"Samir Fouad",null,null,null,null,null,null,null,null,null,1001019,null,null,null,0]
[null,null,null,null,null,null,null,null,null,null,null,null,"10 $ Discount",null,null,"Samir Fouad",null,null,null,null,null,null,null,null,null,1001020,null,null,null,100]
[null,null,null,null,null,null,null,null,null,null,null,null,"Shopping",null,null,"Samir Fouad",null,null,null,null,null,null,null,null,null,1001021,null,null,null,0]
[null,null,null,null,null,null,null,null,null,null,null,null,null,null,null,"Samir Fouad",null,null,null,null,null,null,null,null,null,1001022,null,null,null,99]
[null,null,null,null,null,null,null,null,null,null,null,null,"35$ Discount",null,null,"Samir Fouad",null,null,null,null,null,null,null,null,null,1001023,null,null,null,25]
[null,null,null,null,null,null,null,null,null,null,null,null,"Shopping",null,null,"Samir Fouad",null,null,null,null,null,null,null,null,null,1001024,null,null,null,0]
[null,null,null,null,null,null,null,null,null,null,null,null,"Shopping",null,null,"Samir Fouad",null,null,null,null,null,null,null,null,null,1001025,null,null,null,0]
[null,null,null,null,null,null,null,null,null,null,null,null,"5 $ Discount",null,null,"Samir Fouad",null,null,null,null,null,null,null,null,null,1001026,null,null,null,25]
[null,null,null,null,null,null,null,null,null,null,null,null,"5 $ Discount",null,null,"Samir Fouad",null,null,null,null,null,null,null,null,null,1001027,null,null,null,50]
[null,null,null,null,null,null,null,null,null,null,null,null,"10 $ Discount",null,null,"Samir Fouad",null,null,null,null,null,null,null,null,null,1001028,null,null,null,50]
[null,null,null,null,null,null,null,null,null,null,null,null,null,null,null,"Samir Fouad",null,null,null,null,null,null,null,null,null,1001029,null,null,null,198]
[null,null,null,null,null,null,null,null,null,null,null,null,"10 $ Discount",null,null,"Samir Fouad",null,null,null,null,null,null,null,null,null,1001030,null,null,null,100]
[null,null,null,null,null,null,null,null,null,null,null,null,"5 $ Discount",null,null,"Samir Fouad",null,null,null,null,null,null,null,null,null,1001031,null,null,null,25]
[null,null,null,null,null,null,null,null,null,null,null,null,"10 $ Discount",null,null,"Samir Fouad",null,null,null,null,null,null,null,null,null,1001032,null,null,null,100]
[null,null,null,null,null,null,null,null,null,null,null,null,null,null,null,"Samir Fouad",null,null,null,null,null,null,null,null,null,1001033,null,null,null,99]
[null,null,null,null,null,null,null,null,null,null,null,null,"Shopping",null,null,"Samir Fouad",null,null,null,null,null,null,null,null,null,1001034,null,null,null,0]
[null,null,null,null,null,null,null,null,null,null,null,null,null,null,null,"Samir Fouad",null,null,null,null,null,null,null,null,null,1001035,null,null,null,120]
[null,null,null,null,null,null,null,null,null,null,null,null,null,null,null,"Samir Fouad",null,null,null,null,null,null,null,null,null,1001036,null,null,null,220]
[null,null,null,null,null,null,null,null,null,null,null,null,"Shopping",null,null,"Samir Fouad",null,null,null,null,null,null,null,null,null,1001037,null,null,null,0]
[null,null,null,null,null,null,null,null,null,null,null,null,null,null,null,"Samir Fouad",null,null,null,null,null,null,null,null,null,1001038,null,null,null,110]
[null,null,null,null,null,null,null,null,null,null,null,null,null,null,null,"Samir Fouad",null,null,null,null,null,null,null,null,null,1001039,null,null,null,160]
[null,null,null,null,null,null,null,null,null,null,null,null,"Shopping",null,null,"Samir Fouad",null,null,null,null,null,null,null,null,null,1001040,null,null,null,0]
[null,null,null,null,null,null,null,null,null,null,null,null,null,null,null,"Samir Fouad",null,null,null,null,null,null,null,null,null,1001041,null,null,null,45]
[null,null,null,null,null,null,null,null,null,null,null,null,null,null,null,"Samir Fouad",null,null,null,null,null,null,null,null,null,1001042,null,null,null,120]
[null,null,null,null,null,null,null,null,null,null,null,null,"Shopping",null,null,"Samir Fouad",null,null,null,null,null,null,null,null,null,1001043,null,null,null,0]
[null,null,null,null,null,null,null,null,null,null,null,null,null,null,null,"Samir Fouad",null,null,null,null,null,null,null,null,null,1001044,null,null,null,60]
[null,null,null,null,null,null,null,null,null,null,null,null,"Shopping",null,null,"Samir Fouad",null,null,null,null,null,null,null,null,null,1001045,null,null,null,0]
[null,null,null,null,null,null,null,null,null,null,null,null,null,null,null,"Samir Fouad",null,null,null,null,null,null,null,null,null,1001046,null,null,null,160]
[null,null,null,null,null,null,null,null,null,null,null,null,"Shopping",null,null,"Samir Fouad",null,null,null,null,null,null,null,null,null,1001047,null,null,null,0]
[null,null,null,null,null,null,null,null,null,null,null,null,null,null,null,"Samir Fouad",null,null,null,null,null,null,null,null,null,1001048,null,null,null,80]
[null,null,null,null,null,null,null,null,null,null,null,null,null,null,null,"Samir Fouad",null,null,null,null,null,null,null,null,null,1001049,null,null,null,60]
[null,null,null,null,null,null,null,null,null,null,null,null,"5 $ Discount",null,null,"Samir Fouad",null,null,null,null,null,null,null,null,null,1001050,null,null,null,40]
[null,null,null,null,null,null,null,null,null,null,null,null,"Shopping",null,null,"Samir Fouad",null,null,null,null,null,null,null,null,null,1001051,null,null,null,0]
[null,null,null,null,null,null,null,null,null,null,null,null,null,null,null,"Samir Fouad",null,null,null,null,null,null,null,null,null,1001052,null,null,null,55]
[null,null,null,null,null,null,null,null,null,null,null,null,null,null,null,"Samir Fouad",null,null,null,null,null,null,null,null,null,1001053,null,null,null,40]
[null,null,null,null,null,null,null,null,null,null,null,null,"Shopping",null,null,"Samir Fouad",null,null,null,null,null,null,null,null,null,1001054,null,null,null,0]
[null,null,null,null,null,null,null,null,null,null,null,null,null,null,null,"Samir Fouad",null,null,null,null,null,null,null,null,null,1001055,null,null,null,320]
[null,null,null,null,null,null,null,null,null,null,null,null,"Shopping",null,null,"Samir Fouad",null,null,null,null,null,null,null,null,null,1001056,null,null,null,0]
[null,null,null,null,null,null,null,null,null,null,null,null,null,null,null,null,null,null,null,null,null,null,null,null,null,null,null,null,null,{"$f":"SUM(AD3:AD223)","v":14826}]

{"sheet":"Samir Fouad","index":1,"n_rows":245,"n_cols":11,"rows_kept":245,"cut":false,"hidden":false,"merged":[[207,0,207,4],[209,0,209,4],[242,0,242,1],[244,0,244,4],[21,10,22,15],[162,0,162,4],[164,0,164,1],[164,4,165,4],[166,0,166,4],[168,0,168,4],[201,0,201,1],[203,0,203,4],[205,0,205,1],[205,4,206,4],[160,0,160,1],[123,0,123,1],[123,4,124,4],[125,0,125,4],[127,0,127,4],[119,0,119,1],[121,0,121,4],[86,0,86,4],[78,0,78,1],[80,0,80,4],[82,0,82,1],[82,4,83,4],[84,0,84,4],[39,0,39,4],[41,0,41,1],[41,4,42,4],[43,0,43,4],[45,0,45,4],[37,0,37,1],[0,0,0,1],[0,4,1,4],[2,0,2,4],[4,0,4,4]]}
[{"$f":"TODAY()","v":"2021-01-21"}]
[]
["Company :Safari Company"]
[]
["Guide Name: Samir Fouad"]
[]
["No.","Voucher no.","Cash",null,"Remarks"]
[1]
[2]
[3]
[4]
[5]
[6]
[7]
[8]
[9]
[10]
[11]
[12]
[13]
[14]
[15,null,null,null,null,null,null,null,null,null,"هذه شكل النتائج المطلوبة والبيانات المطلوب ترحيلها \nمن صفحة Main"]
[16]
[17]
[18]
[19]
[20]
[21]
[22]
[23]
[24]
[25]
[26]
[27]
[28]
[29]
[30]
["Total :",null,{"$f":"SUM(C8:C37)","v":0}]
[]
["Guide Signature :…………………………………………………………………………………………………….."]
[]
[{"$f":"TODAY()","v":"2021-01-21"}]
[]
["Company :Safari Company"]
[]
["Guide Name: Samir Fouad"]
[]
["No.","Voucher no.","Cash",null,"Remarks"]
[31]
[32]
[33]
[34]
[35]
[36]
[37]
[38]
[39]
[40]
[41]
[42]
[43]
[44]
[45]
[46]
[47]
[48]
[49]
[50]
[51]
[52]
[53]
[54]
[55]
[56]
[57]
[58]
[59]
[60]
["Total :",null,{"$f":"SUM(C49:C78)","v":0}]
[]
["Guide Signature :…………………………………………………………………………………………………….."]
[]
[{"$f":"TODAY()","v":"2021-01-21"}]
[]
["Company :Safari Company"]
[]
["Guide Name: Samir Fouad"]
[]
["No.","Voucher no.","Cash",null,"Remarks"]
[61]
[62]
[63]
[64]
[65]
[66]
[67]
[68]
[69]
[70]
[71]
[72]
[73]
[74]
[75]
[76]
[77]
[78]
[79]
[80]
[81]
[82]
[83]
[84]
[85]
[86]
[87]
[88]
[89]
[90]
["Total :",null,{"$f":"SUM(C90:C119)","v":0}]
[]
["Guide Signature :…………………………………………………………………………………………………….."]
[]
[{"$f":"TODAY()","v":"2021-01-21"}]
[]
["Company :Safari Company"]
[]
["Guide Name: Samir Fouad"]
[]
["No.","Voucher no.","Cash",null,"Remarks"]
[91]
[92]
[93]
[94]
[95]
[96]
[97]
[98]
[99]
[100]
[101]
[102]
[103]
[104]
[105]
[106]
[107]
[108]
[109]
[110]
[111]
[112]
[113]
[114]
[115]
[116]
[117]
[118]
[119]
[120]
["Total :",null,{"$f":"SUM(C131:C160)","v":0}]
[]
["Guide Signature :…………………………………………………………………………………………………….."]
[]
[{"$f":"TODAY()","v":"2021-01-21"}]
[]
["Company :Safari Company"]
[]
["Guide Name: Samir Fouad"]
[]
["No.","Voucher no.","Cash",null,"Remarks"]
[{"$f":"IF(B172=\"\",\"\",SUBTOTAL(3,$B$172:B172))","v":""}]
[{"$f":"IF(B173=\"\",\"\",SUBTOTAL(3,$B$172:B173))","v":""}]
[{"$f":"IF(B174=\"\",\"\",SUBTOTAL(3,$B$172:B174))","v":""}]
[{"$f":"IF(B175=\"\",\"\",SUBTOTAL(3,$B$172:B175))","v":""}]
[{"$f":"IF(B176=\"\",\"\",SUBTOTAL(3,$B$172:B176))","v":""}]
[{"$f":"IF(B177=\"\",\"\",SUBTOTAL(3,$B$172:B177))","v":""}]
[{"$f":"IF(B178=\"\",\"\",SUBTOTAL(3,$B$172:B178))","v":""}]
[{"$f":"IF(B179=\"\",\"\",SUBTOTAL(3,$B$172:B179))","v":""}]
[{"$f":"IF(B180=\"\",\"\",SUBTOTAL(3,$B$172:B180))","v":""}]
[{"$f":"IF(B181=\"\",\"\",SUBTOTAL(3,$B$172:B181))","v":""}]
[{"$f":"IF(B182=\"\",\"\",SUBTOTAL(3,$B$172:B182))","v":""}]
[{"$f":"IF(B183=\"\",\"\",SUBTOTAL(3,$B$172:B183))","v":""}]
[{"$f":"IF(B184=\"\",\"\",SUBTOTAL(3,$B$172:B184))","v":""}]
[{"$f":"IF(B185=\"\",\"\",SUBTOTAL(3,$B$172:B185))","v":""}]
[{"$f":"IF(B186=\"\",\"\",SUBTOTAL(3,$B$172:B186))","v":""}]
[{"$f":"IF(B187=\"\",\"\",SUBTOTAL(3,$B$172:B187))","v":""}]
[{"$f":"IF(B188=\"\",\"\",SUBTOTAL(3,$B$172:B188))","v":""}]
[{"$f":"IF(B189=\"\",\"\",SUBTOTAL(3,$B$172:B189))","v":""}]
[{"$f":"IF(B190=\"\",\"\",SUBTOTAL(3,$B$172:B190))","v":""}]
[{"$f":"IF(B191=\"\",\"\",SUBTOTAL(3,$B$172:B191))","v":""}]
[{"$f":"IF(B192=\"\",\"\",SUBTOTAL(3,$B$172:B192))","v":""}]
[{"$f":"IF(B193=\"\",\"\",SUBTOTAL(3,$B$172:B193))","v":""}]
[{"$f":"IF(B194=\"\",\"\",SUBTOTAL(3,$B$172:B194))","v":""}]
[{"$f":"IF(B195=\"\",\"\",SUBTOTAL(3,$B$172:B195))","v":""}]
[{"$f":"IF(B196=\"\",\"\",SUBTOTAL(3,$B$172:B196))","v":""}]
[{"$f":"IF(B197=\"\",\"\",SUBTOTAL(3,$B$172:B197))","v":""}]
[{"$f":"IF(B198=\"\",\"\",SUBTOTAL(3,$B$172:B198))","v":""}]
[{"$f":"IF(B199=\"\",\"\",SUBTOTAL(3,$B$172:B199))","v":""}]
[{"$f":"IF(B200=\"\",\"\",SUBTOTAL(3,$B$172:B200))","v":""}]
[{"$f":"IF(B201=\"\",\"\",SUBTOTAL(3,$B$172:B201))","v":""}]
["Total :",null,{"$f":"SUM(C172:C201)","v":0}]
[]
["Guide Signature :…………………………………………………………………………………………………….."]
[]
[{"$f":"TODAY()","v":"2021-01-21"}]
[]
["Company :Safari Company"]
[]
["Guide Name: Samir Fouad"]
[]
["No.","Voucher no.","Cash",null,"Remarks"]
[{"$f":"IF(B213=\"\",\"\",SUBTOTAL(3,$B$213:B213))","v":""}]
[{"$f":"IF(B214=\"\",\"\",SUBTOTAL(3,$B$213:B214))","v":""}]
[{"$f":"IF(B215=\"\",\"\",SUBTOTAL(3,$B$213:B215))","v":""}]
[{"$f":"IF(B216=\"\",\"\",SUBTOTAL(3,$B$213:B216))","v":""}]
[{"$f":"IF(B217=\"\",\"\",SUBTOTAL(3,$B$213:B217))","v":""}]
[{"$f":"IF(B218=\"\",\"\",SUBTOTAL(3,$B$213:B218))","v":""}]
[{"$f":"IF(B219=\"\",\"\",SUBTOTAL(3,$B$213:B219))","v":""}]
[{"$f":"IF(B220=\"\",\"\",SUBTOTAL(3,$B$213:B220))","v":""}]
[{"$f":"IF(B221=\"\",\"\",SUBTOTAL(3,$B$213:B221))","v":""}]
[{"$f":"IF(B222=\"\",\"\",SUBTOTAL(3,$B$213:B222))","v":""}]
[{"$f":"IF(B223=\"\",\"\",SUBTOTAL(3,$B$213:B223))","v":""}]
[{"$f":"IF(B224=\"\",\"\",SUBTOTAL(3,$B$213:B224))","v":""}]
[{"$f":"IF(B225=\"\",\"\",SUBTOTAL(3,$B$213:B225))","v":""}]
[{"$f":"IF(B226=\"\",\"\",SUBTOTAL(3,$B$213:B226))","v":""}]
[{"$f":"IF(B227=\"\",\"\",SUBTOTAL(3,$B$213:B227))","v":""}]
[{"$f":"IF(B228=\"\",\"\",SUBTOTAL(3,$B$213:B228))","v":""}]
[{"$f":"IF(B229=\"\",\"\",SUBTOTAL(3,$B$213:B229))","v":""}]
[{"$f":"IF(B230=\"\",\"\",SUBTOTAL(3,$B$213:B230))","v":""}]
[{"$f":"IF(B231=\"\",\"\",SUBTOTAL(3,$B$213:B231))","v":""}]
[{"$f":"IF(B232=\"\",\"\",SUBTOTAL(3,$B$213:B232))","v":""}]
[{"$f":"IF(B233=\"\",\"\",SUBTOTAL(3,$B$213:B233))","v":""}]
[{"$f":"IF(B234=\"\",\"\",SUBTOTAL(3,$B$213:B234))","v":""}]
[{"$f":"IF(B235=\"\",\"\",SUBTOTAL(3,$B$213:B235))","v":""}]
[{"$f":"IF(B236=\"\",\"\",SUBTOTAL(3,$B$213:B236))","v":""}]
[{"$f":"IF(B237=\"\",\"\",SUBTOTAL(3,$B$213:B237))","v":""}]
[{"$f":"IF(B238=\"\",\"\",SUBTOTAL(3,$B$213:B238))","v":""}]
[{"$f":"IF(B239=\"\",\"\",SUBTOTAL(3,$B$213:B239))","v":""}]
[{"$f":"IF(B240=\"\",\"\",SUBTOTAL(3,$B$213:B240))","v":""}]
[{"$f":"IF(B241=\"\",\"\",SUBTOTAL(3,$B$213:B241))","v":""}]
[{"$f":"IF(B242=\"\",\"\",SUBTOTAL(3,$B$213:B242))","v":""}]
["Total :",null,{"$f":"SUM(C213:C242)","v":0}]
[]
["Guide Signature :…………………………………………………………………………………………………….."]

{"sheet":"Omar Nagy","index":2,"n_rows":122,"n_cols":5,"rows_kept":122,"cut":false,"hidden":false,"merged":[[119,0,119,1],[121,0,121,4],[86,0,86,4],[78,0,78,1],[80,0,80,4],[82,0,82,1],[82,4,83,4],[84,0,84,4],[39,0,39,4],[41,0,41,1],[41,4,42,4],[43,0,43,4],[45,0,45,4],[37,0,37,1],[0,0,0,1],[0,4,1,4],[2,0,2,4],[4,0,4,4]]}
[{"$f":"TODAY()","v":"2021-01-21"}]
[]
["Company :Safari Company"]
[]
["Guide Name: Omar Nagy"]
[]
["No.","Voucher no.","Cash",null,"Remarks"]
[1]
[2]
[3]
[4]
[5]
[6]
[7]
[8]
[9]
[10]
[11]
[12]
[13]
[14]
[15]
[16]
[17]
[18]
[19]
[20]
[21]
[22,null,null,null,""]
[23,null,null,null,""]
[24,null,null,null,""]
[25,null,null,null,""]
[26,null,null,null,""]
[27,null,null,null,""]
[28,null,null,null,""]
[29,null,null,null,""]
[30,null,null,null,""]
["Total :",null,{"$f":"SUM(C8:C37)","v":0}]
[]
["Guide Signature :…………………………………………………………………………………………………….."]
[]
[{"$f":"TODAY()","v":"2021-01-21"}]
[]
["Company :Safari Company"]
[]
["Guide Name: Omar Nagy"]
[]
["No.","Voucher no.","Cash",null,"Remarks"]
[31,null,null,null,""]
[32,null,null,null,""]
[33,null,null,null,""]
[34,null,null,null,""]
[35,null,null,null,""]
[36,null,null,null,""]
[37,null,null,null,""]
[38,null,null,null,""]
[39,null,null,null,""]
[40,null,null,null,""]
[41,null,null,null,""]
[42,null,null,null,""]
[43,null,null,null,""]
[44,null,null,null,""]
[45,null,null,null,""]
[46,null,null,null,""]
[47,null,null,null,""]
[48,null,null,null,""]
[49,null,null,null,""]
[50,null,null,null,""]
[51,null,null,null,""]
[52,null,null,null,""]
[53,null,null,null,""]
[54,null,null,null,""]
[55,null,null,null,""]
[56,null,null,null,""]
[57,null,null,null,""]
[58,null,null,null,""]
[59,null,null,null,""]
[60,null,null,null,""]
["Total :",null,{"$f":"SUM(C49:C78)","v":0}]
[]
["Guide Signature :…………………………………………………………………………………………………….."]
[]
[{"$f":"TODAY()","v":"2021-01-21"}]
[]
["Company :Safari Company"]
[]
["Guide Name: Omar Nagy"]
[]
["No.","Voucher no.","Cash",null,"Remarks"]
[61,null,null,null,""]
[62,null,null,null,""]
[63,null,null,null,""]
[64,null,null,null,""]
[65,null,null,null,""]
[66,null,null,null,""]
[67,null,null,null,""]
[68,null,null,null,""]
[69,null,null,null,""]
[70,null,null,null,""]
[71,null,null,null,""]
[72,null,null,null,""]
[73,null,null,null,""]
[74,null,null,null,""]
[75,null,null,null,""]
[76,null,null,null,""]
[77,null,null,null,""]
[78,null,null,null,""]
[79,null,null,null,""]
[80,null,null,null,""]
[81,null,null,null,""]
[82,null,null,null,""]
[83,null,null,null,""]
[84,null,null,null,""]
[85,null,null,null,""]
[86,null,null,null,""]
[87,null,null,null,""]
[88,null,null,null,""]
[89,null,null,null,""]
[90,null,null,null,""]
["Total :",null,{"$f":"SUM(C90:C119)","v":0}]
[]
["Guide Signature :…………………………………………………………………………………………………….."]

{"sheet":"Said Reda","index":3,"n_rows":122,"n_cols":5,"rows_kept":122,"cut":false,"hidden":false,"merged":[[119,0,119,1],[121,0,121,4],[86,0,86,4],[78,0,78,1],[80,0,80,4],[82,0,82,1],[82,4,83,4],[84,0,84,4],[39,0,39,4],[41,0,41,1],[41,4,42,4],[43,0,43,4],[45,0,45,4],[37,0,37,1],[0,0,0,1],[0,4,1,4],[2,0,2,4],[4,0,4,4]]}
[{"$f":"TODAY()","v":"2021-01-21"}]
[]
["Company :Safari Company"]
[]
["Guide Name: Said Reda"]
[]
["No.","Voucher no.","Cash",null,"Remarks"]
[1]
[2]
[3]
[4]
[5]
[6]
[7]
[8]
[9]
[10]
[11]
[12]
[13]
[14]
[15]
[16]
[17]
[18]
[19]
[20]
[21]
[22]
[23]
[24]
[25]
[26]
[27]
[28]
[29]
[30]
["Total :",null,{"$f":"SUM(C8:C37)","v":0}]
[]
["Guide Signature :…………………………………………………………………………………………………….."]
[]
[{"$f":"TODAY()","v":"2021-01-21"}]
[]
["Company :Safari Company"]
[]
["Guide Name: Said Reda"]
[]
["No.","Voucher no.","Cash",null,"Remarks"]
[31,null,null,null,""]
[32,null,null,null,""]
[33,null,null,null,""]
[34,null,null,null,""]
[35,null,null,null,""]
[36,null,null,null,""]
[37,null,null,null,""]
[38,null,null,null,""]
[39,null,null,null,""]
[40,null,null,null,""]
[41,null,null,null,""]
[42,null,null,null,""]
[43,null,null,null,""]
[44,null,null,null,""]
[45,null,null,null,""]
[46,null,null,null,""]
[47,null,null,null,""]
[48,null,null,null,""]
[49,null,null,null,""]
[50,null,null,null,""]
[51,null,null,null,""]
[52,null,null,null,""]
[53,null,null,null,""]
[54,null,null,null,""]
[55,null,null,null,""]
[56,null,null,null,""]
[57,null,null,null,""]
[58,null,null,null,""]
[59,null,null,null,""]
[60,null,null,null,""]
["Total :",null,{"$f":"SUM(C49:C78)","v":0}]
[]
["Guide Signature :…………………………………………………………………………………………………….."]
[]
[{"$f":"TODAY()","v":"2021-01-21"}]
[]
["Company :Safari Company"]
[]
["Guide Name: Said Reda"]
[]
["No.","Voucher no.","Cash",null,"Remarks"]
[61,null,null,null,""]
[62,null,null,null,""]
[63,null,null,null,""]
[64,null,null,null,""]
[65,null,null,null,""]
[66,null,null,null,""]
[67,null,null,null,""]
[68,null,null,null,""]
[69,null,null,null,""]
[70,null,null,null,""]
[71,null,null,null,""]
[72,null,null,null,""]
[73,null,null,null,""]
[74,null,null,null,""]
[75,null,null,null,""]
[76,null,null,null,""]
[77,null,null,null,""]
[78,null,null,null,""]
[79,null,null,null,""]
[80,null,null,null,""]
[81,null,null,null,""]
[82,null,null,null,""]
[83,null,null,null,""]
[84,null,null,null,""]
[85,null,null,null,""]
[86,null,null,null,""]
[87,null,null,null,""]
[88,null,null,null,""]
[89,null,null,null,""]
[90,null,null,null,""]
["Total :",null,{"$f":"SUM(C90:C119)","v":0}]
[]
["Guide Signature :…………………………………………………………………………………………………….."]